bitfinex/quotes_ETHUSD_20241225
["timestamp","ask_amount","ask_price","bid_price","bid_amount"]
[1735150116832,4.58030409,3472.9,3471.6,0.7964]
[1735150116833,2.87992,3472.4,3471.6,0.7964]
[1735150116974,2.87969,3472.6,3471.7,0.55]
[1735150118592,5.34495146,3472.9,3471.7,0.55]
[1735150118793,1.27498492,3472.8,3471.7,0.55]
[1735150118997,2.87968,3472.6,3471.6,0.7964]
[1735150119205,2.88014,3472.1,3471.6,0.7964]
[1735150119407,2.8802,3472.0,3471.6,0.7964]
[1735150121679,2.87968,3472.6,3471.7,0.55]
[1735150121879,2.87968,3472.6,3472.0,0.8011]
[1735150122495,2.77585865,3472.9,3472.0,0.8011]
[1735150122496,2.87952,3472.8,3472.0,0.8011]
[1735150123039,2.77585865,3472.9,3472.0,0.8011]
[1735150123219,2.87977,3472.5,3472.0,0.8011]
[1735150127368,2.87989,3472.4,3472.0,0.8011]
[1735150128154,3.299129,3472.8,3472.0,0.8011]
[1735150128361,2.87992,3472.4,3472.0,0.8011]
[1735150130375,2.88035,3471.8,3471.0,0.7601]
[1735150131032,2.88035,3471.8,3471.0,1.69425822]
[1735150132497,2.88055,3471.6,3471.0,0.7601]
[1735150132650,2.88084,3471.2,3470.5,0.7601]
[1735150132985,2.88101,3471.1,3470.5,0.7601]
[1735150133281,2.88111,3470.9,3470.5,0.7601]
[1735150133694,0.288111,3470.9,3470.5,0.7601]
[1735150133832,2.88076,3471.3,3470.5,0.7601]
[1735150134233,2.88101,3471.0,3470.5,0.7601]
[1735150135694,0.783,3471.4,3470.5,0.7601]
[1735150135907,2.88086,3471.2,3470.5,0.7601]
[1735150137266,2.88093,3471.1,3470.5,0.7601]
[1735150138525,3.247323,3471.1,3470.5,0.7601]
[1735150141420,0.366393,3471.1,3470.5,0.7601]
[1735150141725,0.783,3471.4,3470.1,0.7971]
[1735150141874,2.7210623,3471.2,3470.1,0.7971]
[1735150142285,2.88107,3471.0,3470.1,0.7971]
[1735150142731,2.88076,3471.3,3470.1,0.7971]
[1735150143113,2.88084,3471.2,3470.1,0.7971]
[1735150143332,0.366384,3471.1,3470.1,0.7971]
[1735150144338,2.88118,3470.8,3470.1,0.7971]
[1735150144640,2.88147,3470.5,3470.1,0.7971]
[1735150153335,2.88176,3470.1,3469.4,0.828]
[1735150153509,2.88187,3470.0,3469.4,0.828]
[1735150154111,2.88192,3469.9,3469.4,0.828]
[1735150155895,2.88192,3469.9,3468.8,1.378]
[1735150155896,0.288192,3469.9,3468.8,1.378]
[1735150156096,0.7652,3470.2,3468.8,1.378]
[1735150156297,2.88208,3469.8,3468.8,1.378]
[1735150157041,2.88189,3470.0,3468.9,0.828]
[1735150157230,2.88189,3470.0,3469.0,0.55]
[1735150157461,0.7652,3470.2,3469.1,0.828]
[1735150157661,6.3681623,3470.0,3469.1,0.828]
[1735150157977,2.88227,3469.5,3468.6,1.378]
[1735150158679,3.4862623,3470.0,3468.6,1.378]
[1735150158838,2.88219,3469.6,3468.6,1.378]
[1735150159174,1.3515209,3470.3,3469.0,0.55]
[1735150159375,2.88188,3470.0,3469.1,0.828]
[1735150160073,2.88195,3469.9,3469.1,0.828]
[1735150160381,2.88202,3469.8,3469.1,0.828]
[1735150161049,2.88186,3470.0,3469.1,0.828]
[1735150161370,4.2331509,3470.3,3469.1,0.828]
[1735150161371,1.3515209,3470.3,3469.1,0.69818123]
[1735150161577,2.88167,3470.2,3469.2,0.828]
[1735150161748,2.88178,3470.1,3469.2,0.828]
[1735150162135,2.88191,3470.0,3469.2,0.828]
[1735150162353,2.88192,3470.0,3469.2,0.828]
[1735150163654,3.4679809,3470.3,3469.3,1.378]
[1735150163961,2.88166,3470.3,3469.5,0.55]
[1735150164165,2.88166,3470.3,3469.6,0.828]
[1735150164368,1.34656883,3470.8,3469.6,0.828]
[1735150164573,2.8817,3470.2,3469.6,0.828]
[1735150165676,0.40676311,3470.7,3469.6,0.828]
[1735150165987,2.88193,3469.9,3469.3,0.7771]
[1735150166391,2.88204,3469.8,3469.3,0.7771]
[1735150167674,2.88217,3469.7,3469.3,0.7771]
[1735150168276,2.88219,3469.6,3469.3,0.7771]
[1735150169902,2.88219,3469.6,3468.8,0.7771]
[1735150170106,2.88219,3469.6,3468.8,1.3271]
[1735150170303,2.88213,3469.7,3468.8,1.3271]
[1735150170494,3.51607753,3469.7,3468.8,1.3271]
[1735150170697,2.88213,3469.7,3468.8,1.3271]
[1735150171097,2.88192,3469.9,3469.0,0.55]
[1735150171271,0.7502,3470.1,3469.1,0.7771]
[1735150171471,2.88201,3469.8,3469.1,0.7771]
[1735150171766,2.88186,3470.0,3469.1,0.80592408]
[1735150172093,2.88186,3470.0,3469.3,0.7771]
[1735150172296,0.58367745,3470.3,3469.3,0.7771]
[1735150172506,2.88216,3469.7,3469.3,0.7771]
[1735150173318,2.88195,3469.9,3469.3,0.7771]
[1735150173884,2.88177,3470.1,3469.3,0.7771]
[1735150174437,2.88177,3470.1,3469.5,0.7771]
[1735150175105,0.97895517,3470.7,3469.7,0.7771]
[1735150175106,2.88162,3470.3,3469.7,0.7771]
[1735150175306,2.88176,3470.1,3469.7,0.7771]
[1735150175508,0.7502,3470.5,3469.1,0.55]
[1735150175685,2.88199,3469.9,3469.1,1.270993]
[1735150175892,0.69247544,3470.4,3469.1,0.720993]
[1735150176100,2.88208,3469.8,3469.0,0.7771]
[1735150176422,2.88211,3469.7,3469.0,0.7771]
[1735150179627,2.88194,3469.9,3469.0,0.7771]
[1735150180204,2.88164,3470.3,3469.0,0.7771]
[1735150180453,2.88202,3469.8,3469.0,0.7771]
[1735150180646,2.88202,3469.8,3469.2,0.7771]
[1735150184751,2.88146,3470.5,3469.5,0.55]
[1735150184948,2.88146,3470.5,3469.6,0.7561]
[1735150185157,2.88151,3470.4,3469.6,0.7561]
[1735150185320,1.20296363,3470.5,3469.6,0.7561]
[1735150185522,2.88161,3470.3,3469.6,0.7561]
[1735150186466,0.66451191,3470.3,3469.6,0.7561]
[1735150186611,2.88183,3470.1,3469.6,0.7561]
[1735150189281,0.66451191,3470.3,3469.6,0.7561]
[1735150189440,2.8819,3470.0,3469.6,0.7561]
[1735150189638,1.95906363,3470.6,3469.6,0.7561]
[1735150189842,2.88201,3469.9,3469.6,0.7561]
[1735150193503,0.7561,3470.1,3469.2,0.7561]
[1735150193663,0.19590636,3470.0,3469.2,0.7561]
[1735150193860,2.88202,3469.8,3469.2,0.7561]
[1735150194489,0.19590636,3470.0,3469.2,0.7561]
[1735150194677,2.88221,3469.6,3469.2,0.7561]
[1735150196972,2.88202,3469.8,3469.2,0.7561]
[1735150197172,1.20296363,3470.0,3469.2,2.94571272]
[1735150197476,1.20296363,3470.0,3469.4,0.8096]
[1735150197880,1.20296363,3470.0,3469.4,2.88234]
[1735150198084,1.20296363,3470.0,3469.5,2.88222]
[1735150198267,1.20296363,3470.0,3469.6,0.8096]
[1735150198503,1.20296363,3470.4,3469.7,0.369182]
[1735150199374,4.08452363,3470.4,3469.7,0.369182]
[1735150199788,1.20296363,3470.4,3469.7,0.369182]
[1735150200084,2.88175,3470.2,3469.6,0.8096]
[1735150200303,2.88177,3470.1,3469.6,0.8096]
[1735150201013,1.20296363,3470.2,3469.7,0.55]
[1735150201219,1.20296363,3470.2,3469.8,2.7210623]
[1735150201371,1.20296363,3470.2,3469.9,1.42780399]
[1735150202289,4.08438363,3470.6,3469.9,1.42780399]
[1735150202638,4.08438363,3470.6,3469.9,0.8096]
[1735150203140,2.88142,3470.6,3469.9,0.8096]
[1735150203949,1.20296363,3470.7,3469.9,0.8096]
[1735150204109,2.88179,3470.1,3469.9,0.8096]
[1735150204296,2.8818,3470.1,3469.7,1.19166796]
[1735150204503,2.88185,3470.0,3469.7,1.19166796]
[1735150204999,2.88201,3469.8,3469.7,1.19166796]
[1735150206115,2.88201,3469.8,3469.3,0.8096]
[1735150211272,2.24404863,3470.0,3469.3,0.8096]
[1735150211602,4.37300863,3470.0,3469.3,0.8096]
[1735150212545,4.08482363,3470.0,3469.3,0.8096]
[1735150213636,2.88186,3470.0,3469.3,0.8096]
[1735150218611,2.88186,3470.0,3469.3,0.8096]
[1735150220269,1.20296363,3470.1,3469.6,0.55]
[1735150220452,1.20296363,3470.1,3469.7,0.7773]
[1735150221557,4.08449363,3470.4,3469.7,0.7773]
[1735150222192,2.88162,3470.3,3469.7,0.7773]
[1735150222489,0.58890291,3470.3,3469.7,0.7773]
[1735150223743,2.88188,3470.0,3469.7,0.7773]
[1735150224039,2.88193,3469.9,3469.7,0.7773]
[1735150226646,2.88193,3469.9,3469.3,0.7734]
[1735150228760,1.20296363,3470.1,3469.3,0.7734]
[1735150229005,4.08475363,3470.1,3469.3,1.44865699]
[1735150229190,4.08475363,3470.1,3469.4,0.99430602]
[1735150230535,2.88179,3470.1,3469.5,2.4855928]
[1735150231555,2.88169,3470.2,3469.6,0.8232]
[1735150231744,1.20296363,3470.3,3469.6,0.8232]
[1735150231945,2.88177,3470.1,3469.6,1.81750602]
[1735150232986,2.88177,3470.1,3469.6,0.8232]
[1735150234684,4.08457363,3470.3,3469.6,1.0922125]
[1735150235289,2.88168,3470.2,3469.6,1.0922125]
[1735150236203,1.20296363,3470.4,3469.6,1.0922125]
[1735150236345,4.08449363,3470.4,3469.7,0.55]
[1735150236541,1.20296363,3470.4,3469.8,0.8232]
[1735150236746,1.20296363,3470.4,3470.1,0.55]
[1735150236975,1.20296363,3470.4,3470.2,0.8232]
[1735150238790,4.08414363,3470.8,3470.2,0.8232]
[1735150241319,1.20296363,3470.8,3470.2,0.8232]
[1735150241526,1.20296363,3470.8,3470.4,0.8025]
[1735150241691,1.20296363,3470.8,3470.5,0.918416]
[1735150241891,1.20296363,3470.8,3470.6,0.8025]
[1735150242219,1.20296363,3470.9,3470.6,0.8025]
[1735150243198,2.88119,3470.8,3470.0,0.8025]
[1735150243396,2.88119,3470.8,3470.1,0.55]
[1735150243805,2.88096,3471.1,3470.3,0.55]
[1735150243985,2.88096,3471.1,3470.4,0.8025]
[1735150244541,4.08392363,3471.1,3470.4,0.8025]
[1735150245378,1.20296363,3471.1,3470.5,0.55]
[1735150245950,4.08375363,3471.3,3470.6,0.8025]
[1735150247529,2.88085,3471.2,3470.6,0.8025]
[1735150249252,1.20296363,3471.5,3470.6,0.8025]
[1735150249253,2.88098,3471.1,3470.6,0.8025]
[1735150253259,2.88111,3470.9,3470.6,0.8025]
[1735150253398,2.88124,3470.8,3470.6,0.8025]
[1735150255157,2.88142,3470.6,3470.1,0.55]
[1735150255463,2.88143,3470.5,3470.1,0.55]
[1735150256417,2.88127,3470.7,3470.2,0.8112]
[1735150258560,4.08368363,3471.4,3470.2,0.8112]
[1735150258853,2.88105,3471.0,3470.2,0.8112]
[1735150259021,2.88109,3470.9,3470.2,0.8112]
[1735150261651,0.96573394,3471.4,3470.2,0.8112]
[1735150261851,2.8812,3470.8,3470.2,0.8112]
[1735150266348,1.20296363,3471.4,3470.2,0.8112]
[1735150266555,1.20296363,3471.4,3469.9,0.55]
[1735150266556,0.7952,3470.6,3469.9,0.8112]
[1735150266751,2.88185,3470.0,3469.8,1.19166796]
[1735150267512,2.88163,3470.3,3469.8,1.19166796]
[1735150267736,2.88175,3470.2,3469.8,1.19166796]
[1735150267956,2.88175,3470.2,3469.7,0.8112]
[1735150268775,1.20296363,3470.7,3469.9,0.8112]
[1735150269085,2.88135,3470.6,3469.9,0.8112]
[1735150269284,1.20296363,3470.8,3470.0,0.55]
[1735150269573,1.20296363,3470.8,3470.2,0.55]
[1735150269775,1.20296363,3470.8,3469.9,35.0]
[1735150269776,1.20296363,3470.8,3470.5,0.8112]
[1735150270431,1.20296363,3471.2,3470.6,0.55]
[1735150270633,1.20296363,3471.2,3470.8,0.55]
[1735150270838,1.20296363,3471.2,3470.9,0.7643]
[1735150271860,2.88068,3471.4,3470.9,0.7643]
[1735150284507,1.20296363,3471.6,3470.9,0.7643]
[1735150284896,1.20296363,3471.6,3471.0,0.57880576]
[1735150285132,1.20296363,3471.6,3471.1,0.7643]
[1735150287132,2.88045,3471.7,3471.1,0.7643]
[1735150292688,2.88071,3471.4,3471.1,0.7643]
[1735150293040,2.88076,3471.3,3471.1,0.7643]
[1735150294055,2.88095,3471.1,3470.8,0.8069]
[1735150296768,4.08351363,3471.6,3470.8,0.8069]
[1735150296769,2.88076,3471.3,3470.8,0.8069]
[1735150297571,2.881,3471.1,3470.4,1.19166796]
[1735150297859,2.881,3471.1,3470.5,1.3569]
[1735150299026,2.881,3471.1,3470.5,0.8069]
[1735150301772,2.88104,3471.0,3470.5,0.8069]
[1735150301977,2.88112,3470.9,3470.5,0.8069]
[1735150302283,0.7895,3471.2,3470.3,0.7985]
[1735150302478,0.7524,3470.5,3470.2,1.19166796]
[1735150302685,2.88159,3470.3,3470.2,1.19166796]
[1735150303387,3.244989,3470.3,3470.2,1.19166796]
[1735150303986,0.363399,3470.3,3469.7,0.7985]
[1735150304284,3.63383,3470.5,3469.7,0.7985]
[1735150306385,0.7524,3470.5,3469.7,0.7985]
[1735150306592,2.88162,3470.3,3469.7,0.7985]
[1735150308582,2.88172,3470.2,3469.4,1.3485]
[1735150308902,3.63416,3470.1,3469.4,1.3485]
[1735150311073,0.7524,3470.1,3469.4,2.04371423]
[1735150311383,0.7524,3470.1,3469.4,4.76477653]
[1735150313092,2.88171,3470.2,3469.4,4.76477653]
[1735150313481,0.8333,3470.3,3469.4,4.76477653]
[1735150313681,2.88177,3470.1,3469.4,4.0695623]
[1735150319420,2.88197,3469.9,3469.4,3.5195623]
[1735150322227,0.8333,3470.3,3469.4,3.5195623]
[1735150322388,0.7922,3470.5,3469.8,0.785]
[1735150323409,2.88161,3470.3,3469.8,0.785]
[1735150324893,0.367381,3470.3,3469.5,0.785]
[1735150325155,0.7922,3470.5,3469.5,0.785]
[1735150325352,2.882,3469.9,3469.5,0.785]
[1735150326199,2.882,3469.9,3469.1,2.7210623]
[1735150326505,2.882,3469.9,3469.1,3.5060623]
[1735150326995,2.88201,3469.8,3469.1,3.5060623]
[1735150327121,2.88209,3469.7,3469.1,0.785]
[1735150327416,0.367421,3469.8,3469.1,0.785]
[1735150327417,1.159621,3469.8,3469.1,0.785]
[1735150328651,2.88209,3469.7,3469.1,0.785]
[1735150328848,0.7922,3469.8,3469.1,0.785]
[1735150329150,2.88219,3469.6,3469.1,0.785]
[1735150332363,2.88202,3469.8,3469.1,0.785]
[1735150332511,2.88202,3469.8,3469.1,3.5060623]
[1735150332854,2.88211,3469.7,3469.1,3.5060623]
[1735150333152,2.88211,3469.7,3469.1,0.785]
[1735150334255,0.7727,3469.7,3468.8,0.7665]
[1735150334409,2.88238,3469.4,3468.8,0.7665]
[1735150335657,2.8822,3469.6,3468.9,0.5788267]
[1735150335990,2.8822,3469.6,3468.9,0.9566389]
[1735150336162,2.8822,3469.6,3468.9,0.55]
[1735150336766,2.8822,3469.6,3469.0,0.7665]
[1735150339195,0.7727,3470.0,3469.0,0.7665]
[1735150339394,2.8823,3469.5,3469.0,0.7665]
[1735150341101,2.88238,3469.4,3469.0,0.7665]
[1735150341304,2.88244,3469.3,3468.8,0.7665]
[1735150343502,2.88228,3469.5,3468.8,0.7665]
[1735150344205,2.88234,3469.4,3468.8,0.7665]
[1735150349336,2.88245,3469.3,3468.8,0.7665]
[1735150349847,2.88266,3469.1,3468.8,0.7665]
[1735150350060,0.288266,3469.1,3468.8,0.7665]
[1735150351226,3.65605,3469.3,3468.8,0.7665]
[1735150354150,0.7736,3469.3,3468.5,1.3277]
[1735150354469,2.88259,3469.1,3468.5,1.3277]
[1735150356034,2.88241,3469.4,3468.6,2.7210623]
[1735150356249,1.20296363,3469.5,3468.9,2.7210623]
[1735150356405,1.20296363,3469.5,3469.0,0.7777]
[1735150356767,1.20296363,3469.5,3469.2,0.7777]
[1735150356929,1.20296363,3469.8,3469.3,0.55]
[1735150357154,1.20296363,3469.8,3469.4,0.7777]
[1735150358478,2.88186,3470.0,3469.4,0.7777]
[1735150358970,2.88208,3469.8,3469.4,0.7777]
[1735150359659,2.54187325,3470.3,3469.4,0.7777]
[1735150359861,2.88186,3470.0,3469.4,0.7777]
[1735150360632,2.88207,3469.8,3469.4,0.7777]
[1735150362186,0.7624,3470.2,3469.1,0.792]
[1735150362475,2.88233,3469.5,3469.1,0.792]
[1735150364700,1.20296363,3469.8,3469.1,0.792]
[1735150364905,4.08491363,3469.9,3469.1,0.792]
[1735150365564,2.88201,3469.8,3469.1,0.792]
[1735150368606,1.6364755,3470.1,3469.1,0.792]
[1735150368767,2.8821,3469.7,3469.1,0.792]
[1735150371604,2.8821,3469.7,3469.2,0.99579594]
[1735150372954,2.8821,3469.7,3469.3,0.99579594]
[1735150373665,2.88202,3469.8,3469.3,0.99579594]
[1735150374023,2.88202,3469.8,3469.1,1.98366796]
[1735150374224,2.88202,3469.8,3469.1,3.36155213]
[1735150374971,2.88202,3469.8,3469.2,2.48916255]
[1735150375458,4.08482363,3470.0,3469.3,0.8058]
[1735150376268,2.88186,3470.0,3469.3,3.29496255]
[1735150377550,2.88193,3469.9,3469.4,0.99566502]
[1735150379134,2.88193,3469.9,3469.3,0.8058]
[1735150381883,0.48472936,3469.9,3469.3,0.8058]
[1735150382081,1.20296363,3470.1,3469.3,0.8058]
[1735150382679,4.08472363,3470.1,3469.3,0.8058]
[1735150382981,1.20296363,3470.0,3469.3,0.8058]
[1735150383183,2.88216,3469.7,3469.3,0.8058]
[1735150385257,1.20296363,3470.0,3469.3,0.8058]
[1735150385439,1.20296363,3470.0,3469.5,0.8058]
[1735150386994,4.08464363,3470.2,3469.5,0.8058]
[1735150387284,4.08464363,3470.2,3469.6,0.8058]
[1735150387581,1.20296363,3470.2,3470.0,0.8058]
[1735150388649,1.20296363,3470.7,3470.0,0.8058]
[1735150389389,1.20296363,3470.7,3470.0,1.75044302]
[1735150389696,2.88121,3470.8,3470.0,1.75044302]
[1735150389852,2.88126,3470.7,3470.0,1.75044302]
[1735150392483,2.88126,3470.7,3470.0,0.8058]
[1735150393023,1.96586363,3471.0,3470.0,0.8058]
[1735150393218,2.88134,3470.6,3470.0,0.8058]
[1735150399036,1.96586363,3471.0,3470.0,0.8058]
[1735150399357,2.88144,3470.5,3470.0,0.8058]
[1735150405770,1.20296363,3470.9,3470.1,1.19712991]
[1735150405920,2.88129,3470.7,3470.2,0.7704]
[1735150414124,3.67498357,3470.9,3470.2,0.7704]
[1735150414331,2.88112,3470.9,3470.2,0.7704]
[1735150415340,1.20296363,3471.1,3470.7,1.19712991]
[1735150415527,1.20296363,3471.1,3470.9,1.19712991]
[1735150415732,1.20296363,3471.1,3471.0,0.7631]
[1735150416673,1.20296363,3471.6,3471.0,0.7631]
[1735150418164,2.88043,3471.7,3471.0,0.7631]
[1735150418371,2.88061,3471.5,3471.0,0.7631]
[1735150429018,0.81,3471.6,3470.4,0.7569]
[1735150429386,2.88127,3470.7,3470.4,0.7569]
[1735150429787,2.88127,3470.7,3470.2,2.01566796]
[1735150430511,2.88127,3470.7,3470.2,0.824]
[1735150431487,2.88135,3470.6,3470.2,0.824]
[1735150434318,2.8812,3470.8,3470.2,0.824]
[1735150435420,2.88131,3470.7,3470.2,0.824]
[1735150438340,2.88131,3470.7,3470.2,2.02097732]
[1735150441479,1.20296363,3471.1,3470.4,1.19697732]
[1735150441684,2.8811,3470.9,3470.5,0.7871]
[1735150443239,2.88127,3470.7,3470.5,0.7871]
[1735150443530,2.88134,3470.6,3470.2,0.7871]
[1735150445417,2.8812,3470.8,3470.3,1.19697732]
[1735150445627,2.8812,3470.8,3470.4,0.7871]
[1735150446191,2.8812,3470.8,3470.5,1.19697732]
[1735150449326,2.88102,3471.0,3470.5,1.19697732]
[1735150451666,2.88102,3471.0,3470.6,0.7672]
[1735150453071,1.20296363,3471.3,3470.6,0.7672]
[1735150453366,2.88111,3470.9,3470.6,0.7672]
[1735150456093,2.88118,3470.8,3470.4,0.7672]
[1735150457272,2.88103,3471.0,3470.4,0.7672]
[1735150457476,2.88109,3470.9,3470.5,1.19697732]
[1735150460458,2.88102,3471.0,3470.6,0.7672]
[1735150461492,2.88109,3471.0,3470.6,0.7672]
[1735150462613,4.84336363,3471.3,3470.6,0.7672]
[1735150462793,5.74873726,3471.3,3470.6,0.7672]
[1735150463393,2.88109,3470.9,3470.6,0.7672]
[1735150476294,2.88126,3470.7,3470.3,1.96946796]
[1735150476726,3.63586,3470.9,3470.3,3.16644528]
[1735150477026,2.88116,3470.9,3470.3,3.16644528]
[1735150477402,2.88116,3470.9,3470.4,0.7778]
[1735150477915,2.88116,3470.9,3470.4,1.97477732]
[1735150478533,2.88116,3470.9,3470.5,2.49373328]
[1735150480030,2.88116,3470.9,3470.4,1.97477732]
[1735150481468,4.08412363,3470.9,3470.4,1.97477732]
[1735150482559,4.08412363,3470.9,3470.4,0.7778]
[1735150482711,2.88116,3470.9,3470.5,0.99752052]
[1735150484095,2.88116,3470.9,3470.6,0.99752052]
[1735150485215,2.88116,3470.9,3470.4,1.96946796]
[1735150485375,2.88116,3470.9,3470.4,3.16644528]
[1735150485882,1.20296363,3471.0,3470.4,3.16644528]
[1735150486023,1.20296363,3471.0,3470.9,0.8215]
[1735150486637,1.80444544,3471.2,3470.9,5.56847732]
[1735150486638,1.20296363,3471.1,3470.9,5.56847732]
[1735150486947,1.20296363,3471.1,3471.0,8.44948732]
[1735150488555,1.20296363,3472.2,3471.1,0.8215]
[1735150488756,1.20296363,3472.2,3472.0,2.01847732]
[1735150490149,2.87969,3472.6,3472.0,2.01847732]
[1735150491165,2.87974,3472.6,3472.0,2.01847732]
[1735150491356,0.58092051,3472.8,3472.0,2.01847732]
[1735150491557,0.42194305,3472.7,3472.0,2.01847732]
[1735150492748,2.87977,3472.5,3472.0,2.01847732]
[1735150495046,0.8259,3472.6,3471.3,0.8244]
[1735150495254,2.88018,3472.0,3471.7,1.19697732]
[1735150497267,2.88018,3472.0,3471.5,1.19697732]
[1735150497700,2.8803,3471.9,3471.5,1.19697732]
[1735150498378,0.8259,3472.1,3471.5,1.19697732]
[1735150498697,0.8259,3472.1,3471.5,1.39911505]
[1735150498876,2.88009,3472.2,3471.5,1.39911505]
[1735150499071,2.88009,3472.2,3471.7,1.19697732]
[1735150499688,2.88012,3472.1,3471.5,1.39911505]
[1735150499887,2.88012,3472.1,3471.5,1.19697732]
[1735150500392,2.88028,3471.9,3471.5,1.19697732]
[1735150500569,2.88028,3471.9,3471.3,2.02137732]
[1735150502009,2.88011,3472.1,3471.5,1.19697732]
[1735150503031,0.7689,3472.6,3471.8,0.7973]
[1735150503202,2.87979,3472.5,3471.8,0.7973]
[1735150503566,0.7689,3472.6,3471.8,0.7973]
[1735150503821,2.87988,3472.4,3471.8,0.7973]
[1735150504556,4.11373736,3472.6,3471.8,0.7973]
[1735150504866,2.87977,3472.5,3471.8,0.7973]
[1735150506321,2.88014,3472.1,3471.8,0.7973]
[1735150507356,2.88027,3471.9,3471.2,1.3473]
[1735150507523,2.88013,3472.1,3471.2,1.3473]
[1735150508079,2.88028,3471.9,3471.2,0.7973]
[1735150510461,0.7689,3472.2,3471.2,0.7973]
[1735150510462,0.7689,3472.2,3471.2,1.44911185]
[1735150510780,2.8801,3472.1,3471.3,0.825]
[1735150510944,1.20004305,3472.7,3471.6,0.55]
[1735150511142,2.87972,3472.6,3471.7,0.825]
[1735150511370,2.87972,3472.6,3471.8,0.825]
[1735150512083,1.80444544,3472.8,3472.0,0.825]
[1735150512285,1.80444544,3472.8,3472.1,0.85379649]
[1735150512607,2.87921,3473.2,3472.1,0.825]
[1735150513141,3.46941841,3473.3,3472.2,4.25501]
[1735150513344,2.87911,3473.3,3472.5,0.825]
[1735150515269,0.7781,3473.5,3472.5,0.825]
[1735150515455,2.87946,3472.9,3472.5,0.825]
[1735150516571,0.7781,3472.8,3472.2,0.825]
[1735150516783,2.8799,3472.4,3471.5,0.825]
[1735150516968,2.8799,3472.4,3471.6,0.38286506]
[1735150517170,2.87997,3472.3,3471.6,0.38286506]
[1735150517386,2.88009,3472.2,3471.5,0.825]
[1735150518590,2.88013,3472.1,3471.5,0.825]
[1735150519017,0.7781,3472.8,3471.5,0.825]
[1735150519197,0.7781,3472.8,3471.5,2.88056]
[1735150519198,2.87973,3472.6,3471.5,2.88056]
[1735150519492,0.7781,3472.8,3472.0,2.72081849]
[1735150519493,2.87953,3472.8,3472.0,2.72081849]
[1735150519681,2.87963,3472.7,3471.9,0.825]
[1735150520258,0.365763,3472.8,3471.9,0.825]
[1735150520459,0.7781,3472.7,3471.5,0.825]
[1735150520883,2.88034,3471.9,3471.5,0.825]
[1735150521198,0.7781,3472.7,3471.5,0.825]
[1735150521199,2.88007,3472.2,3471.5,0.825]
[1735150521498,2.88007,3472.2,3471.5,1.2075]
[1735150522082,2.88007,3472.2,3471.5,4.2075]
[1735150522360,2.8801,3472.1,3471.5,0.825]
[1735150522561,2.8802,3472.0,3471.5,0.825]
[1735150524038,2.88031,3471.9,3471.5,0.825]
[1735150526660,2.87968,3472.6,3471.2,0.7759]
[1735150526661,0.7891,3472.0,3471.2,0.7759]
[1735150526795,2.88047,3471.7,3471.2,0.7759]
[1735150527509,2.88025,3472.0,3471.2,0.7759]
[1735150527703,2.87926,3473.2,3471.7,2.72081849]
[1735150527704,2.87978,3472.5,3471.7,2.72081849]
[1735150527958,2.87978,3472.5,3471.8,0.7759]
[1735150529077,2.87968,3472.6,3471.8,0.7759]
[1735150529247,2.87998,3472.3,3471.8,0.7759]
[1735150529558,2.88003,3472.2,3471.8,0.7759]
[1735150529703,0.54732254,3472.5,3471.4,0.7987]
[1735150529905,2.88049,3471.7,3471.3,1.20146023]
[1735150530144,0.8147,3472.4,3471.3,1.20146023]
[1735150530370,2.88057,3471.6,3471.3,1.20146023]
[1735150530936,2.88057,3471.6,3471.1,0.7987]
[1735150531131,2.88028,3471.9,3471.1,0.7987]
[1735150531365,2.88028,3471.9,3471.1,3.51951849]
[1735150532148,2.88028,3471.9,3471.1,4.27973136]
[1735150532871,2.88018,3472.0,3471.1,0.7987]
[1735150533234,2.88034,3471.9,3471.1,0.7987]
[1735150533574,2.88034,3471.9,3470.9,1.20146023]
[1735150533575,2.88084,3471.2,3471.0,1.20146023]
[1735150534159,2.88093,3471.1,3471.0,1.20146023]
[1735150534892,0.369527,3471.4,3470.5,1.20146023]
[1735150535051,3.69536,3471.5,3470.5,1.20146023]
[1735150535252,2.8812,3470.8,3470.5,1.20146023]
[1735150535786,0.58306581,3471.4,3470.5,1.20146023]
[1735150535972,2.88125,3470.8,3470.5,1.20146023]
[1735150536153,0.8147,3471.3,3470.5,1.20146023]
[1735150536358,2.88131,3470.7,3470.3,0.7987]
[1735150536747,2.88108,3471.0,3470.3,0.7987]
[1735150537151,2.88086,3471.2,3470.3,0.7987]
[1735150537354,0.8147,3471.3,3470.3,0.7987]
[1735150538785,2.88093,3471.1,3470.3,0.7987]
[1735150538989,2.88086,3471.2,3470.5,0.7987]
[1735150539482,2.88086,3471.2,3470.5,3.51951849]
[1735150540493,0.8147,3471.6,3470.6,0.55]
[1735150540665,1.20740849,3471.8,3470.8,0.8171]
[1735150540666,2.88068,3471.4,3470.8,0.8171]
[1735150542691,0.769,3471.8,3470.8,0.8171]
[1735150543059,0.769,3471.5,3470.3,0.8171]
[1735150543261,0.64898185,3471.7,3470.2,1.20146023]
[1735150543262,0.769,3471.3,3470.2,1.20146023]
[1735150543495,2.88153,3470.4,3470.2,1.20146023]
[1735150543659,2.88153,3470.4,3470.0,2.61929034]
[1735150543660,2.88153,3470.4,3470.0,2.01856023]
[1735150544455,2.88153,3470.4,3470.0,5.01856023]
[1735150544655,2.88136,3470.6,3470.0,5.01856023]
[1735150545057,2.88136,3470.6,3470.0,3.8171]
[1735150545491,0.769,3471.3,3470.1,3.8171]
[1735150545682,2.88112,3470.9,3470.1,3.8171]
[1735150545885,0.769,3471.3,3470.1,0.8171]
[1735150546087,2.88118,3470.8,3470.1,0.8171]
[1735150546260,2.88127,3470.7,3470.1,0.8171]
[1735150547000,2.88142,3470.6,3470.1,0.8171]